[Event "Titled Tuesday Blitz October 25 Late 2022"]
[White "Mihajlov, Sebastian"]
[Black "Ali Abdullahi, Farah"]
[WhiteFideId "1512110"]
[BlackFideId "16100212"]
[WhiteElo "2464"]
[BlackElo "2225"]
[Result "1-0"]
[Round "01"]
[TimeControl "180+1"]
[Date "2022.10.26"]
[WhiteClock "0:00:33"]
[BlackClock "0:00:06"]

1. f4 {[%clk 0:02:49]}  b6 {[%clk 0:02:56]} 2. e4 {[%clk 0:02:48]}  Bb7 {[%clk 0:02:53]} 3. Nc3 {[%clk 0:02:48]}  e6 {[%clk 0:02:53]} 4. g3 {[%clk 0:02:43]}  c5 {[%clk 0:02:53]} 5. Bg2 {[%clk 0:02:43]}  g6 {[%clk 0:02:52]} 6. d4 {[%clk 0:02:41]}  Bg7 {[%clk 0:02:49]} 7. Be3 {[%clk 0:02:39]}  Ne7 {[%clk 0:02:46]} 8. dxc5 {[%clk 0:02:37]}  O-O {[%clk 0:02:42]} 9. Qd2 {[%clk 0:02:34]}  Nbc6 {[%clk 0:02:39]} 10. O-O-O {[%clk 0:02:25]}  Rc8 {[%clk 0:02:33]} 11. Qxd7 {[%clk 0:02:19]}  Bxc3 {[%clk 0:02:26]} 12. bxc3 {[%clk 0:02:19]}  bxc5 {[%clk 0:02:14]} 13. Qxb7 {[%clk 0:02:18]}  Qa5 {[%clk 0:02:13]} 14. Qb3 {[%clk 0:01:45]}  Rb8 {[%clk 0:02:11]} 15. Qc4 {[%clk 0:01:45]}  Qa3+ {[%clk 0:02:07]} 16. Kd2 {[%clk 0:01:45]}  Na5 {[%clk 0:02:05]} 17. Qxc5 {[%clk 0:01:45]}  Qxa2 {[%clk 0:01:59]} 18. Qxe7 {[%clk 0:01:28]}  Rfd8+ {[%clk 0:01:54]} 19. Bd4 {[%clk 0:01:24]}  Nb3+ {[%clk 0:01:49]} 20. Ke3 {[%clk 0:01:19]}  Qxc2 {[%clk 0:01:48]} 21. Ne2 {[%clk 0:01:15]}  Rbc8 {[%clk 0:01:28]} 22. Qf6 {[%clk 0:01:10]}  Nxd4 {[%clk 0:01:20]} 23. cxd4 {[%clk 0:00:57]}  Rb8 {[%clk 0:01:15]} 24. Rd3 {[%clk 0:00:57]}  Rdc8 {[%clk 0:01:07]} 25. Rc1 {[%clk 0:00:52]}  Qb2 {[%clk 0:00:59]} 26. Rxc8+ {[%clk 0:00:52]}  Rxc8 {[%clk 0:00:59]} 27. h4 {[%clk 0:00:50]}  Rc2 {[%clk 0:00:53]} 28. Bf3 {[%clk 0:00:50]}  Qb1 {[%clk 0:00:36]} 29. h5 {[%clk 0:00:49]}  Qe1 {[%clk 0:00:09]} 30. h6 {[%clk 0:00:32]}  Rxe2+ {[%clk 0:00:08]} 31. Bxe2 {[%clk 0:00:33]}  Qxg3+ {[%clk 0:00:09]} 32. Kd2 {[%clk 0:00:33]}  Qxf4+ {[%clk 0:00:06]} 33. Qxf4 {[%clk 0:00:33]} 1-0


[Site "https://www.chess.com"]

[Event "Titled Tuesday Blitz October 25 Late 2022"]
[White "Milosevic, Milos"]
[Black "Babazada, Khazar"]
[WhiteFideId "964875"]
[BlackFideId "13413554"]
[WhiteElo "2321"]
[BlackElo "2367"]
[Result "1/2-1/2"]
[Round "01"]
[TimeControl "180+1"]
[Date "2022.10.26"]
[WhiteClock "0:00:09"]
[BlackClock "0:00:07"]

1. e4 {[%clk 0:03:00]}  Nf6 {[%clk 0:02:50]} 2. e5 {[%clk 0:02:59]}  Nd5 {[%clk 0:02:51]} 3. d4 {[%clk 0:02:59]}  d6 {[%clk 0:02:50]} 4. Nf3 {[%clk 0:03:00]}  Nb6 {[%clk 0:02:43]} 5. Be2 {[%clk 0:02:55]}  g6 {[%clk 0:02:43]} 6. O-O {[%clk 0:02:48]}  Bg7 {[%clk 0:02:42]} 7. Bd3 {[%clk 0:02:39]}  O-O {[%clk 0:02:43]} 8. h3 {[%clk 0:02:39]}  Nc6 {[%clk 0:02:42]} 9. Re1 {[%clk 0:02:38]}  dxe5 {[%clk 0:02:42]} 10. dxe5 {[%clk 0:02:38]}  Be6 {[%clk 0:02:42]} 11. Nbd2 {[%clk 0:02:29]}  Qd5 {[%clk 0:02:33]} 12. Qe2 {[%clk 0:02:26]}  Rfd8 {[%clk 0:02:33]} 13. Be4 {[%clk 0:02:18]}  Qc5 {[%clk 0:02:33]} 14. Nb3 {[%clk 0:02:17]}  Bxb3 {[%clk 0:02:26]} 15. axb3 {[%clk 0:02:15]}  Nd5 {[%clk 0:02:19]} 16. c3 {[%clk 0:02:09]}  a6 {[%clk 0:02:15]} 17. b4 {[%clk 0:02:09]}  Qa7 {[%clk 0:02:10]} 18. e6 {[%clk 0:01:58]}  f5 {[%clk 0:02:09]} 19. Bxd5 {[%clk 0:01:57]}  Rxd5 {[%clk 0:02:10]} 20. Be3 {[%clk 0:01:58]}  Qb8 {[%clk 0:02:04]} 21. Qc4 {[%clk 0:01:56]}  Qd8 {[%clk 0:02:02]} 22. Ng5 {[%clk 0:01:51]}  Ne5 {[%clk 0:01:59]} 23. Qb3 {[%clk 0:01:50]}  c6 {[%clk 0:01:51]} 24. f4 {[%clk 0:01:46]}  Nd3 {[%clk 0:01:47]} 25. Red1 {[%clk 0:01:44]}  h6 {[%clk 0:01:38]} 26. Nf7 {[%clk 0:01:44]}  Qc8 {[%clk 0:01:38]} 27. c4 {[%clk 0:01:43]}  Qxe6 {[%clk 0:01:39]} 28. Nxh6+ {[%clk 0:01:23]}  Bxh6 {[%clk 0:01:34]} 29. Rxd3 {[%clk 0:01:23]}  Rxd3 {[%clk 0:01:33]} 30. Qxd3 {[%clk 0:01:24]}  Bg7 {[%clk 0:01:34]} 31. Re1 {[%clk 0:01:16]}  Qd6 {[%clk 0:01:26]} 32. Qb3 {[%clk 0:01:13]}  Rd8 {[%clk 0:01:22]} 33. Kh1 {[%clk 0:01:08]}  Qd3 {[%clk 0:01:20]} 34. Qxd3 {[%clk 0:01:05]}  Rxd3 {[%clk 0:01:20]} 35. Bc5 {[%clk 0:01:06]}  Rd7 {[%clk 0:01:05]} 36. Rxe7 {[%clk 0:01:04]}  Rxe7 {[%clk 0:01:05]} 37. Bxe7 {[%clk 0:01:05]}  Bxb2 {[%clk 0:01:06]} 38. g4 {[%clk 0:01:03]}  Kf7 {[%clk 0:01:07]} 39. Bd6 {[%clk 0:01:02]}  Ba3 {[%clk 0:01:07]} 40. gxf5 {[%clk 0:00:58]}  gxf5 {[%clk 0:01:08]} 41. Kg2 {[%clk 0:00:58]}  a5 {[%clk 0:01:08]} 42. Kf3 {[%clk 0:00:54]}  Bxb4 {[%clk 0:01:08]} 43. Be5 {[%clk 0:00:53]}  a4 {[%clk 0:01:08]} 44. h4 {[%clk 0:00:52]}  Kg6 {[%clk 0:01:09]} 45. Ke3 {[%clk 0:00:51]}  Kh5 {[%clk 0:01:09]} 46. Bf6 {[%clk 0:00:51]}  Bd6 {[%clk 0:01:07]} 47. Be5 {[%clk 0:00:47]}  Be7 {[%clk 0:01:06]} 48. Kd4 {[%clk 0:00:46]}  b5 {[%clk 0:01:05]} 49. cxb5 {[%clk 0:00:32]}  cxb5 {[%clk 0:01:06]} 50. Kd5 {[%clk 0:00:31]}  Kxh4 {[%clk 0:01:02]} 51. Ke6 {[%clk 0:00:29]}  Bf8 {[%clk 0:00:25]} 52. Kxf5 {[%clk 0:00:29]}  b4 {[%clk 0:00:26]} 53. Ke4 {[%clk 0:00:28]}  Kg4 {[%clk 0:00:27]} 54. Kd3 {[%clk 0:00:26]}  b3 {[%clk 0:00:25]} 55. Kc3 {[%clk 0:00:25]}  Kf3 {[%clk 0:00:22]} 56. Kb2 {[%clk 0:00:22]}  Ke4 {[%clk 0:00:22]} 57. Kc3 {[%clk 0:00:21]}  Kd5 {[%clk 0:00:21]} 58. Kb2 {[%clk 0:00:21]}  Kc4 {[%clk 0:00:22]} 59. f5 {[%clk 0:00:20]}  a3+ {[%clk 0:00:22]} 60. Kb1 {[%clk 0:00:19]}  Kd5 {[%clk 0:00:22]} 61. Bh8 {[%clk 0:00:18]}  Ke4 {[%clk 0:00:19]} 62. f6 {[%clk 0:00:19]}  Kd3 {[%clk 0:00:11]} 63. Bg7 {[%clk 0:00:18]}  a2+ {[%clk 0:00:12]} 64. Kb2 {[%clk 0:00:11]}  a1=Q+ {[%clk 0:00:12]} 65. Kxa1 {[%clk 0:00:11]}  Bxg7 {[%clk 0:00:09]} 66. fxg7 {[%clk 0:00:11]}  Kc2 {[%clk 0:00:10]} 67. g8=Q {[%clk 0:00:09]}  b2+ {[%clk 0:00:10]} 68. Ka2 {[%clk 0:00:09]}  b1=Q+ {[%clk 0:00:11]} 69. Ka3 {[%clk 0:00:10]}  Qa1+ {[%clk 0:00:07]} 70. Qa2+ {[%clk 0:00:09]}  Qxa2+ {[%clk 0:00:07]} 71. Kxa2 {[%clk 0:00:09]} 1/2-1/2


[Site "https://www.chess.com"]

[Event "Titled Tuesday Blitz October 25 Late 2022"]
[White "Miszler, Levente"]
[Black "Sjugirov, Sanan"]
[WhiteFideId "763276"]
[BlackFideId "4189302"]
[WhiteElo "2176"]
[BlackElo "2609"]
[Result "0-1"]
[Round "01"]
[TimeControl "180+1"]
[Date "2022.10.26"]
[WhiteClock "0:00:01"]
[BlackClock "0:00:09"]

1. Nf3 {[%clk 0:02:59]}  Nf6 {[%clk 0:02:58]} 2. c4 {[%clk 0:02:59]}  e6 {[%clk 0:02:57]} 3. g3 {[%clk 0:03:00]}  d5 {[%clk 0:02:57]} 4. Bg2 {[%clk 0:03:00]}  dxc4 {[%clk 0:02:57]} 5. O-O {[%clk 0:02:58]}  a6 {[%clk 0:02:56]} 6. a4 {[%clk 0:02:55]}  Nc6 {[%clk 0:02:56]} 7. Qc2 {[%clk 0:02:54]}  Na5 {[%clk 0:02:49]} 8. Na3 {[%clk 0:02:52]}  Qd5 {[%clk 0:02:49]} 9. Rd1 {[%clk 0:02:46]}  Nb3 {[%clk 0:02:44]} 10. Rb1 {[%clk 0:02:42]}  Bxa3 {[%clk 0:02:43]} 11. bxa3 {[%clk 0:02:42]}  Bd7 {[%clk 0:02:14]} 12. d3 {[%clk 0:02:41]}  Bxa4 {[%clk 0:02:09]} 13. dxc4 {[%clk 0:02:37]}  Qe4 {[%clk 0:02:08]} 14. Qb2 {[%clk 0:02:18]}  Nc5 {[%clk 0:01:53]} 15. Ne5 {[%clk 0:01:59]}  Qc2 {[%clk 0:01:52]} 16. Rd2 {[%clk 0:01:50]}  Qxb2 {[%clk 0:01:41]} 17. Rdxb2 {[%clk 0:01:51]}  Rd8 {[%clk 0:01:18]} 18. Be3 {[%clk 0:01:47]}  b6 {[%clk 0:01:14]} 19. Bxc5 {[%clk 0:01:42]}  bxc5 {[%clk 0:01:15]} 20. Bc6+ {[%clk 0:01:42]}  Bxc6 {[%clk 0:01:12]} 21. Nxc6 {[%clk 0:01:43]}  Rc8 {[%clk 0:01:05]} 22. Rd1 {[%clk 0:01:08]}  Ne4 {[%clk 0:00:57]} 23. Rb7 {[%clk 0:01:02]}  Nd6 {[%clk 0:00:52]} 24. Ra7 {[%clk 0:00:47]}  f6 {[%clk 0:00:42]} 25. Rxa6 {[%clk 0:00:35]}  Kd7 {[%clk 0:00:30]} 26. Na7 {[%clk 0:00:15]}  Ra8 {[%clk 0:00:30]} 27. a4 {[%clk 0:00:13]}  Rhb8 {[%clk 0:00:29]} 28. Ra5 {[%clk 0:00:04]}  Rb7 {[%clk 0:00:14]} 29. Nc6 {[%clk 0:00:04]}  Rxa5 {[%clk 0:00:15]} 30. Nxa5 {[%clk 0:00:05]}  Rb4 {[%clk 0:00:15]} 31. Ra1 {[%clk 0:00:03]}  Rb6 {[%clk 0:00:07]} 32. e3 {[%clk 0:00:02]}  Kc8 {[%clk 0:00:08]} 33. Kf1 {[%clk 0:00:02]}  Kb8 {[%clk 0:00:08]} 34. Ra3 {[%clk 0:00:02]}  Ka7 {[%clk 0:00:08]} 35. Ke2 {[%clk 0:00:02]}  Rb2+ {[%clk 0:00:06]} 36. Kf3 {[%clk 0:00:02]}  Kb6 {[%clk 0:00:05]} 37. Rb3+ {[%clk 0:00:01]}  Rxb3 {[%clk 0:00:05]} 38. Nxb3 {[%clk 0:00:02]}  Nxc4 {[%clk 0:00:06]} 39. Ke4 {[%clk 0:00:03]}  Kc6 {[%clk 0:00:05]} 40. Kd3 {[%clk 0:00:03]}  Nb2+ {[%clk 0:00:05]} 41. Kc3 {[%clk 0:00:02]}  Nxa4+ {[%clk 0:00:06]} 42. Kc4 {[%clk 0:00:03]}  Nb6+ {[%clk 0:00:07]} 43. Kd3 {[%clk 0:00:02]}  Kb5 {[%clk 0:00:07]} 44. Nd2 {[%clk 0:00:02]}  c4+ {[%clk 0:00:08]} 45. Kc3 {[%clk 0:00:02]}  Na4+ {[%clk 0:00:08]} 46. Kd4 {[%clk 0:00:03]}  c5+ {[%clk 0:00:08]} 47. Ke4 {[%clk 0:00:02]}  c3 {[%clk 0:00:09]} 48. Nb3 {[%clk 0:00:01]}  Kc4 {[%clk 0:00:09]} 0-1


[Site "https://www.chess.com"]

[Event "Titled Tuesday Blitz October 25 Late 2022"]
[White "Mitrovic, Darko R"]
[Black "Borisova, Ekaterina"]
[WhiteFideId "927023"]
[BlackFideId "34124184"]
[WhiteElo "2150"]
[BlackElo "2134"]
[Result "0-1"]
[Round "01"]
[TimeControl "180+1"]
[Date "2022.10.26"]
[WhiteClock "0:00:51"]
[BlackClock "0:01:52"]

1. d4 {[%clk 0:02:57]}  Nf6 {[%clk 0:02:59]} 2. c4 {[%clk 0:02:57]}  e6 {[%clk 0:02:59]} 3. Nf3 {[%clk 0:02:57]}  d5 {[%clk 0:02:59]} 4. g3 {[%clk 0:02:57]}  dxc4 {[%clk 0:02:59]} 5. Bg2 {[%clk 0:02:56]}  c5 {[%clk 0:02:59]} 6. O-O {[%clk 0:02:52]}  Nc6 {[%clk 0:02:59]} 7. Qa4 {[%clk 0:02:45]}  Bd7 {[%clk 0:02:58]} 8. Qxc4 {[%clk 0:02:33]}  b5 {[%clk 0:02:58]} 9. Qxb5 {[%clk 0:02:09]}  Nxd4 {[%clk 0:02:57]} 10. Nxd4 {[%clk 0:01:35]}  Bxb5 {[%clk 0:02:56]} 11. Nxb5 {[%clk 0:01:34]}  Rb8 {[%clk 0:02:03]} 12. Nxa7 {[%clk 0:01:33]}  Qb6 {[%clk 0:02:02]} 13. Nc6 {[%clk 0:01:30]}  Rc8 {[%clk 0:01:58]} 14. a4 {[%clk 0:01:11]}  Rxc6 {[%clk 0:01:54]} 15. a5 {[%clk 0:01:10]}  Qa6 {[%clk 0:01:52]} 16. Bxc6+ {[%clk 0:01:07]}  Qxc6 {[%clk 0:01:52]} 17. a6 {[%clk 0:01:03]}  Bd6 {[%clk 0:01:51]} 18. Nc3 {[%clk 0:00:58]}  O-O {[%clk 0:01:52]} 19. Bg5 {[%clk 0:00:53]}  Ra8 {[%clk 0:01:51]} 20. Bxf6 {[%clk 0:00:51]}  gxf6 {[%clk 0:01:52]} 0-1


[Site "https://www.chess.com"]

[Event "Titled Tuesday Blitz October 25 Late 2022"]
[White "Moaataz, Ayah"]
[Black "Atakishiyev, Elmar"]
[WhiteFideId "10615873"]
[BlackFideId "13410547"]
[WhiteElo "1993"]
[BlackElo "2203"]
[Result "0-1"]
[Round "01"]
[TimeControl "180+1"]
[Date "2022.10.26"]
[WhiteClock "0:00:05"]
[BlackClock "0:00:17"]

1. c4 {[%clk 0:03:00]}  Nf6 {[%clk 0:02:59]} 2. g3 {[%clk 0:03:01]}  g6 {[%clk 0:02:58]} 3. Bg2 {[%clk 0:03:01]}  Bg7 {[%clk 0:02:58]} 4. Nf3 {[%clk 0:03:02]}  O-O {[%clk 0:02:58]} 5. O-O {[%clk 0:03:02]}  d6 {[%clk 0:02:58]} 6. d4 {[%clk 0:03:02]}  c6 {[%clk 0:02:57]} 7. Nc3 {[%clk 0:03:03]}  Nbd7 {[%clk 0:02:57]} 8. b3 {[%clk 0:03:01]}  Re8 {[%clk 0:02:56]} 9. e4 {[%clk 0:02:57]}  e5 {[%clk 0:02:55]} 10. d5 {[%clk 0:02:57]}  Nc5 {[%clk 0:02:52]} 11. Qc2 {[%clk 0:02:54]}  a5 {[%clk 0:02:52]} 12. h3 {[%clk 0:02:53]}  Bd7 {[%clk 0:02:51]} 13. Ba3 {[%clk 0:02:52]}  Qc7 {[%clk 0:02:47]} 14. Rad1 {[%clk 0:02:51]}  h6 {[%clk 0:02:44]} 15. Rd2 {[%clk 0:02:51]}  Rad8 {[%clk 0:02:44]} 16. Rfd1 {[%clk 0:02:50]}  Bc8 {[%clk 0:02:38]} 17. b4 {[%clk 0:02:44]}  axb4 {[%clk 0:02:38]} 18. Bxb4 {[%clk 0:02:44]}  Na6 {[%clk 0:02:35]} 19. Qb2 {[%clk 0:02:39]}  Nxb4 {[%clk 0:02:22]} 20. Qxb4 {[%clk 0:02:38]}  c5 {[%clk 0:02:18]} 21. Qb1 {[%clk 0:02:26]}  Bd7 {[%clk 0:02:12]} 22. Rb2 {[%clk 0:02:25]}  Qa5 {[%clk 0:02:09]} 23. Rc1 {[%clk 0:02:21]}  Qa6 {[%clk 0:01:59]} 24. Rb6 {[%clk 0:02:12]}  Qxc4 {[%clk 0:01:50]} 25. Bf1 {[%clk 0:02:09]}  Qd4 {[%clk 0:01:25]} 26. Nxd4 {[%clk 0:02:08]}  exd4 {[%clk 0:01:26]} 27. Nb5 {[%clk 0:02:08]}  Nxe4 {[%clk 0:01:26]} 28. Nc7 {[%clk 0:02:00]}  Re5 {[%clk 0:01:22]} 29. f4 {[%clk 0:01:58]}  Re7 {[%clk 0:01:22]} 30. Re1 {[%clk 0:01:56]}  Nc3 {[%clk 0:01:21]} 31. Qc1 {[%clk 0:01:53]}  Ne4 {[%clk 0:01:08]} 32. Rxb7 {[%clk 0:01:43]}  Bc8 {[%clk 0:01:07]} 33. Ra7 {[%clk 0:01:40]}  f5 {[%clk 0:01:07]} 34. Nb5 {[%clk 0:01:34]}  Ree8 {[%clk 0:01:02]} 35. g4 {[%clk 0:01:22]}  Bf6 {[%clk 0:00:54]} 36. Bg2 {[%clk 0:01:19]}  Bh4 {[%clk 0:00:51]} 37. Rd1 {[%clk 0:01:04]}  Bf2+ {[%clk 0:00:43]} 38. Kh1 {[%clk 0:00:56]}  Be3 {[%clk 0:00:43]} 39. Qc2 {[%clk 0:00:46]}  Nf2+ {[%clk 0:00:42]} 40. Kh2 {[%clk 0:00:46]}  Bxf4+ {[%clk 0:00:38]} 41. Kg1 {[%clk 0:00:43]}  Nxd1 {[%clk 0:00:39]} 42. Qxd1 {[%clk 0:00:43]}  Re3 {[%clk 0:00:37]} 43. Ra8 {[%clk 0:00:38]}  Rde8 {[%clk 0:00:35]} 44. Bf1 {[%clk 0:00:34]}  Rg3+ {[%clk 0:00:28]} 45. Kf2 {[%clk 0:00:29]}  fxg4 {[%clk 0:00:28]} 46. Qa4 {[%clk 0:00:19]}  Rf8 {[%clk 0:00:25]} 47. Ke1 {[%clk 0:00:17]}  Re3+ {[%clk 0:00:22]} 48. Kd1 {[%clk 0:00:17]}  gxh3 {[%clk 0:00:23]} 49. Bxh3 {[%clk 0:00:11]}  Rxh3 {[%clk 0:00:22]} 50. Qa5 {[%clk 0:00:08]}  Rh2 {[%clk 0:00:18]} 51. Qc7 {[%clk 0:00:06]}  Bg4+ {[%clk 0:00:18]} 52. Ke1 {[%clk 0:00:05]}  Bg3# {[%clk 0:00:17]} 0-1


[Site "https://www.chess.com"]

[Event "Titled Tuesday Blitz October 25 Late 2022"]
[White "Moreno Perez, Tobias Sebastian"]
[Black "Predke, Alexandr"]
[WhiteFideId "186716"]
[BlackFideId "24107581"]
[WhiteElo "2459"]
[BlackElo "2614"]
[Result "0-1"]
[Round "01"]
[TimeControl "180+1"]
[Date "2022.10.26"]
[WhiteClock "0:00:02"]
[BlackClock "0:00:08"]

1. d4 {[%clk 0:02:59]}  Nf6 {[%clk 0:02:58]} 2. Nf3 {[%clk 0:02:59]}  d5 {[%clk 0:02:58]} 3. c4 {[%clk 0:02:58]}  e6 {[%clk 0:02:58]} 4. g3 {[%clk 0:02:58]}  Be7 {[%clk 0:02:59]} 5. Bg2 {[%clk 0:02:58]}  O-O {[%clk 0:02:59]} 6. O-O {[%clk 0:02:58]}  c6 {[%clk 0:03:00]} 7. Nbd2 {[%clk 0:02:58]}  a5 {[%clk 0:02:58]} 8. Qc2 {[%clk 0:02:57]}  Na6 {[%clk 0:02:58]} 9. a3 {[%clk 0:02:56]}  c5 {[%clk 0:02:57]} 10. cxd5 {[%clk 0:02:54]}  exd5 {[%clk 0:02:57]} 11. dxc5 {[%clk 0:02:50]}  Nxc5 {[%clk 0:02:58]} 12. Nb3 {[%clk 0:02:44]}  Nce4 {[%clk 0:02:52]} 13. Nbd4 {[%clk 0:02:43]}  Bd7 {[%clk 0:02:50]} 14. Bf4 {[%clk 0:02:36]}  Rc8 {[%clk 0:02:49]} 15. Qb3 {[%clk 0:02:36]}  b5 {[%clk 0:02:33]} 16. Rfc1 {[%clk 0:02:24]}  a4 {[%clk 0:02:32]} 17. Qd1 {[%clk 0:02:23]}  Qb6 {[%clk 0:02:26]} 18. Ne5 {[%clk 0:02:17]}  Be6 {[%clk 0:02:01]} 19. Nxe6 {[%clk 0:02:00]}  fxe6 {[%clk 0:02:02]} 20. Be3 {[%clk 0:01:52]}  Qb7 {[%clk 0:01:57]} 21. Rxc8 {[%clk 0:01:49]}  Rxc8 {[%clk 0:01:56]} 22. Rc1 {[%clk 0:01:49]}  Bd6 {[%clk 0:01:53]} 23. Nd3 {[%clk 0:01:40]}  Rc4 {[%clk 0:01:49]} 24. f3 {[%clk 0:01:26]}  Nxg3 {[%clk 0:01:17]} 25. hxg3 {[%clk 0:01:24]}  Bxg3 {[%clk 0:01:18]} 26. Bf2 {[%clk 0:01:16]}  Bxf2+ {[%clk 0:01:14]} 27. Nxf2 {[%clk 0:01:13]}  Qb6 {[%clk 0:01:15]} 28. Rxc4 {[%clk 0:01:05]}  bxc4 {[%clk 0:01:16]} 29. Qc2 {[%clk 0:00:53]}  Kf7 {[%clk 0:01:00]} 30. Kf1 {[%clk 0:00:28]}  Nh5 {[%clk 0:00:59]} 31. Ke1 {[%clk 0:00:19]}  Nf4 {[%clk 0:00:53]} 32. Bf1 {[%clk 0:00:18]}  Ng6 {[%clk 0:00:29]} 33. Ng4 {[%clk 0:00:17]}  h5 {[%clk 0:00:27]} 34. Nf2 {[%clk 0:00:14]}  Qd4 {[%clk 0:00:22]} 35. Bh3 {[%clk 0:00:09]}  Nf4 {[%clk 0:00:20]} 36. Qd2 {[%clk 0:00:08]}  Qe5 {[%clk 0:00:15]} 37. Bf1 {[%clk 0:00:06]}  Ng6 {[%clk 0:00:08]} 38. Qc3 {[%clk 0:00:03]}  Qg3 {[%clk 0:00:08]} 39. Qa5 {[%clk 0:00:03]}  Nf4 {[%clk 0:00:07]} 40. Qa7+ {[%clk 0:00:03]}  Kf6 {[%clk 0:00:06]} 41. Qe3 {[%clk 0:00:03]}  h4 {[%clk 0:00:05]} 42. Qd4+ {[%clk 0:00:03]}  Kf7 {[%clk 0:00:03]} 43. e3 {[%clk 0:00:02]}  Ng6 {[%clk 0:00:02]} 44. Qg4 {[%clk 0:00:02]}  Qe5 {[%clk 0:00:02]} 45. e4 {[%clk 0:00:01]}  Qxb2 {[%clk 0:00:01]} 46. exd5 {[%clk 0:00:01]}  Qc3+ {[%clk 0:00:02]} 47. Ke2 {[%clk 0:00:01]}  exd5 {[%clk 0:00:02]} 48. Qf5+ {[%clk 0:00:01]}  Qf6 {[%clk 0:00:01]} 49. Qxf6+ {[%clk 0:00:02]}  Kxf6 {[%clk 0:00:02]} 50. Ng4+ {[%clk 0:00:02]}  Kf5 {[%clk 0:00:02]} 51. Ne3+ {[%clk 0:00:03]}  Ke5 {[%clk 0:00:02]} 52. Bh3 {[%clk 0:00:04]}  Kd4 {[%clk 0:00:03]} 53. Bf5 {[%clk 0:00:04]}  Nf4+ {[%clk 0:00:04]} 54. Kd2 {[%clk 0:00:03]}  c3+ {[%clk 0:00:04]} 55. Kc2 {[%clk 0:00:01]}  Kxe3 {[%clk 0:00:05]} 56. Kxc3 {[%clk 0:00:02]}  d4+ {[%clk 0:00:06]} 57. Kc2 {[%clk 0:00:02]}  d3+ {[%clk 0:00:07]} 58. Kd1 {[%clk 0:00:02]}  h3 {[%clk 0:00:08]} 0-1


[Site "https://www.chess.com"]

[Event "Titled Tuesday Blitz October 25 Late 2022"]
[White "Muhammad, Shahzeb"]
[Black "Korchmar, Vasiliy"]
[WhiteFideId "7804806"]
[BlackFideId "24131750"]
[WhiteElo "2400"]
[BlackElo "2370"]
[Result "0-1"]
[Round "01"]
[TimeControl "180+1"]
[Date "2022.10.26"]
[WhiteClock "0:00:01"]
[BlackClock "0:00:18"]

1. e4 {[%clk 0:02:58]}  c5 {[%clk 0:02:59]} 2. Nc3 {[%clk 0:02:57]}  d6 {[%clk 0:03:00]} 3. f4 {[%clk 0:02:58]}  Nc6 {[%clk 0:02:59]} 4. Nf3 {[%clk 0:02:58]}  e6 {[%clk 0:03:00]} 5. Bb5 {[%clk 0:02:59]}  Bd7 {[%clk 0:02:59]} 6. O-O {[%clk 0:02:56]}  a6 {[%clk 0:02:56]} 7. Bxc6 {[%clk 0:02:55]}  Bxc6 {[%clk 0:02:57]} 8. a4 {[%clk 0:02:55]}  Nf6 {[%clk 0:02:53]} 9. Qe1 {[%clk 0:02:53]}  Be7 {[%clk 0:02:51]} 10. d3 {[%clk 0:02:51]}  O-O {[%clk 0:02:51]} 11. a5 {[%clk 0:02:51]}  b5 {[%clk 0:02:45]} 12. axb6 {[%clk 0:02:49]}  Qxb6 {[%clk 0:02:46]} 13. b3 {[%clk 0:02:48]}  Nd7 {[%clk 0:02:36]} 14. Kh1 {[%clk 0:02:46]}  Bf6 {[%clk 0:02:35]} 15. Na4 {[%clk 0:02:35]}  Qb7 {[%clk 0:02:33]} 16. Bb2 {[%clk 0:02:32]}  Bxb2 {[%clk 0:02:28]} 17. Nxb2 {[%clk 0:02:33]}  d5 {[%clk 0:02:25]} 18. e5 {[%clk 0:02:25]}  f6 {[%clk 0:02:18]} 19. exf6 {[%clk 0:02:15]}  Rxf6 {[%clk 0:02:18]} 20. Ng5 {[%clk 0:02:14]}  Re8 {[%clk 0:01:53]} 21. f5 {[%clk 0:02:06]}  e5 {[%clk 0:01:47]} 22. Ne6 {[%clk 0:01:55]}  d4 {[%clk 0:01:27]} 23. Qg3 {[%clk 0:01:53]}  Rexe6 {[%clk 0:01:15]} 24. fxe6 {[%clk 0:01:52]}  Rg6 {[%clk 0:01:15]} 25. exd7 {[%clk 0:01:52]}  Qxd7 {[%clk 0:01:13]} 26. Qf2 {[%clk 0:00:31]}  Bxg2+ {[%clk 0:01:10]} 27. Qxg2 {[%clk 0:00:32]}  Rxg2 {[%clk 0:01:11]} 28. Kxg2 {[%clk 0:00:32]}  Qg4+ {[%clk 0:01:05]} 29. Kf2 {[%clk 0:00:31]}  Qf4+ {[%clk 0:00:53]} 30. Ke2 {[%clk 0:00:29]}  Qxh2+ {[%clk 0:00:49]} 31. Rf2 {[%clk 0:00:29]}  Qh5+ {[%clk 0:00:49]} 32. Kd2 {[%clk 0:00:27]}  Qg5+ {[%clk 0:00:49]} 33. Ke2 {[%clk 0:00:24]}  Qe3+ {[%clk 0:00:47]} 34. Kf1 {[%clk 0:00:24]}  h5 {[%clk 0:00:43]} 35. Nc4 {[%clk 0:00:23]}  Qh3+ {[%clk 0:00:43]} 36. Ke2 {[%clk 0:00:21]}  Qg4+ {[%clk 0:00:41]} 37. Kd2 {[%clk 0:00:20]}  Qg5+ {[%clk 0:00:40]} 38. Ke2 {[%clk 0:00:20]}  Qg4+ {[%clk 0:00:40]} 39. Kd2 {[%clk 0:00:19]}  e4 {[%clk 0:00:41]} 40. dxe4 {[%clk 0:00:18]}  Qxe4 {[%clk 0:00:41]} 41. Re1 {[%clk 0:00:18]}  Qg4 {[%clk 0:00:41]} 42. Ne5 {[%clk 0:00:15]}  Qg3 {[%clk 0:00:40]} 43. Ree2 {[%clk 0:00:12]}  h4 {[%clk 0:00:35]} 44. Rg2 {[%clk 0:00:09]}  Qc3+ {[%clk 0:00:35]} 45. Kd1 {[%clk 0:00:09]}  Qa1+ {[%clk 0:00:36]} 46. Kd2 {[%clk 0:00:09]}  Qc3+ {[%clk 0:00:36]} 47. Kc1 {[%clk 0:00:09]}  h3 {[%clk 0:00:37]} 48. Rh2 {[%clk 0:00:08]}  a5 {[%clk 0:00:30]} 49. Nd3 {[%clk 0:00:08]}  a4 {[%clk 0:00:26]} 50. bxa4 {[%clk 0:00:08]}  c4 {[%clk 0:00:27]} 51. Nf4 {[%clk 0:00:04]}  d3 {[%clk 0:00:22]} 52. Ref2 {[%clk 0:00:01]}  Qe1+ {[%clk 0:00:17]} 53. Kb2 {[%clk 0:00:01]}  c3+ {[%clk 0:00:18]} 0-1


[Site "https://www.chess.com"]